Cogmind - Beta 11 @@@ ROGUE MODE // 2022.04.06 @ 23:56:54 Player: RNGesus Result: Destroyed by 8R-AWN with 8R-AWN's Boregun Performance ------------- Evolutions (1) 500 Regions Visited (5) 1000 Robots Destroyed (48) 240 Value Destroyed (860) 860 Prototype IDs (1) 20 Alien Tech Used (0) 0 Bonus (-156) -156 TOTAL SCORE: 2464 Bonus ------- Follower Combat Kills 50 Friendly Fire -206 Cogmind --------- Core Integrity 0/400 Matter 219/300 Energy 82/100 System Corruption 0% Temperature Cool (0) Movement Core (50) Location -9/Exiles Parts ------- > --- POWER (1) -------- (None) > --- PROPULSION (3) --- (None) > --- UTILITY (3) ------ (None) > --- WEAPON (2) ------- Ripper > --- INVENTORY (5) ---- Light Treads Seismic Detector Beamcaster Light Assault Rifle Rocket Launcher Peak State ------------ > --- POWER ------------ Light Nuclear Core > --- PROPULSION ------- Light Treads Light Treads Compact Wheel > --- UTILITY ---------- Huge Storage Unit Light Armor Plating Hacking Suite > --- WEAPON ----------- Heavy Assault Rifle Heavy Assault Rifle > --- INVENTORY -------- Light Angular Momentum Engine Light Angular Momentum Engine Light Treads Light Treads Light Treads Compact Wheel Cooling System Cooling System Cooling System Small Storage Unit Seismic Detector Transport Network Coupler Light Armor Plating Hardened Light Armor Plating Beamcaster Light Assault Rifle Light Assault Rifle Rocket Launcher Mini Grenade Launcher Flail Ripper Blade Trap Blade Trap Blade Trap [Rating: 19] Favorites ----------- Power Ion Engine Engine Ion Engine Power Core Light Nuclear Core Propulsion Light Treads Treads Light Treads Wheel Compact Wheel Utility Huge Storage Unit Device Seismic Detector Storage Huge Storage Unit Hackware Hacking Suite Protection Light Armor Plating Weapon Light Assault Rifle Energy Gun Improved EM Shotgun Ballistic Gun Light Assault Rifle Launcher Grenade Launcher Impact Weapon Flail Slashing Weapon Ripper Build | -11 -10 -10 -9 -9 -9 ------- Run | Scr Mat Min Mat Min Exi Slots Evolved 2 | . . . 2 . . Power . | . . . . . . Propulsion 1 | . . . 1 . . Utility 1 | . . . 1 . . Weapon . | . . . . . . Parts Attached 37 | 6 6 4 13 2 6 Power 3 | 1 . . 1 . 1 Engine 2 | 1 . . 1 . . Core 1 | . . . . . 1 Reactor . | . . . . . . Propulsion 9 | 2 . 1 5 . 1 Treads 6 | 2 . . 3 . 1 Leg . | . . . . . . Wheel 3 | . . 1 2 . . Hover . | . . . . . . Flight . | . . . . . . Utility 7 | 1 . 1 3 . 2 Device 1 | . . . 1 . . Storage 2 | 1 . 1 . . . Processor . | . . . . . . Hackware 1 | . . . . . 1 Protection 3 | . . . 2 . 1 Artifact . | . . . . . . Weapon 18 | 2 6 2 4 2 2 Energy Gun 1 | . . . 1 . . Energy Cannon . | . . . . . . Ballistic Gun 9 | 2 3 1 2 1 . Ballistic Cannon . | . . . . . . Launcher 6 | . 2 1 1 1 1 Special Weapon . | . . . . . . Impact Weapon 1 | . 1 . . . . Slashing Weapon 1 | . . . . . 1 Piercing Weapon . | . . . . . . Special Melee Weapon . | . . . . . . Unidentified Prototypes 1 | . . . 1 . . Parts Lost 14 | . . . 5 . 9 Power 2 | . . . 1 . 1 Propulsion 6 | . . . 3 . 3 Utility 2 | . . . . . 2 Weapon 4 | . . . 1 . 3 Highest Loss Streak 9 | . . . 2 . 9 To Critical Strikes 3 | . . . . . 3 Average Slot Usage (%) 91 | . 85 85 96 100 94 Engine 12 | . 14 14 11 11 8 Treads 20 | . 28 15 21 22 21 Wheel 9 | . . 12 11 11 9 Device 5 | . . . 9 11 8 Storage 12 | . 14 14 11 11 11 Protection 5 | . . . 9 11 12 Ballistic Gun 24 | . 27 28 21 21 21 Naked Turns 3 | . . . . . 3 Heaviest Build 99 | 13 13 88 93 95 99 Greatest Support 60 | 40 40 40 16 16 60 Greatest Overweight (x) 8 | 4 . 8 5 5 6 Average Overweight (x) 4 | . . 7 5 5 4 Largest Inventory Capacity 25 | 8 8 25 25 25 25 Average Capacity 21 | 7 8 24 25 25 24 Most Carried 25 | 2 8 19 25 25 25 Average Carried 17 | 1 5 14 22 24 23 Final Capacity 25 | 8 8 25 25 25 5 Final Carried 25 | 2 8 19 25 25 5 Class Distribution -------------------- 52% | Mutant 47% | Scavenger-Mutant Dominant Class ---------------- Mutant | -10/Materials Mutant | -10/Mines Scavenger-Mutant | -9/Materials Scavenger-Mutant | -9/Mines Scavenger-Mutant | -9/Exiles Resources | -11 -10 -10 -9 -9 -9 ----------- Run | Scr Mat Min Mat Min Exi Matter Collected 1016 | 227 203 116 368 102 . Remotely . | . . . . . . Salvage Created 1351 | . 311 210 640 157 33 Parts 106 | . 36 16 40 14 . Haulers Intercepted 3 | . 1 . 2 . . Recyclers Shooed 3 | . 2 . 1 . . Parts Field Recycled . | . . . . . . Retrieved Matter . | . . . . . . Parts Self-Destructed . | . . . . . . Prevented . | . . . . . . Kills | -11 -10 -10 -9 -9 -9 ------- Run | Scr Mat Min Mat Min Exi Combat Hostiles Destroyed 39 | . 9 3 15 6 6 Guns 18 | . 4 . 12 2 . AOE 21 | . 5 3 3 4 6 Classes Destroyed 10 | . 6 1 1 1 1 Worker 1 | . . . . 1 . Builder 2 | . 1 . . 1 . Tunneler 3 | . . 2 . 1 . Hauler 3 | . 1 . 2 . . Recycler 3 | . 1 2 . . . Operator 2 | . 2 . . . . Swarmer 19 | . 6 3 4 6 . Grunt 11 | . 3 . 8 . . Sentry 3 | . . . 3 . . Assembled 6 | . . . . . 6 Thug 1 | . . . . 1 . Best Kill Streak 7 | . 4 3 7 5 6 Combat Bots Only 7 | . 3 3 7 4 6 Max Kills in Single Turn 4 | . 3 3 2 4 3 Gunslinging . | . . . . . . Exploded 3 | . 2 3 2 3 3 Melee . | . . . . . . Uniques/NPCs Destroyed . | . . . . . . Combat | -11 -10 -10 -9 -9 -9 -------- Run | Scr Mat Min Mat Min Exi Damage Taken 2242 | . 238 23 735 196 1050 Core 469 | . 53 4 50 23 339 Absorbed by Shields . | . . . . . . Core Remaining (%) 88 | 100 . 77 . . . Volleys Fired 128 | . 23 15 66 15 9 Largest 2 | . 2 2 2 2 2 Hottest 46 | . 40 40 43 46 46 Shots Fired 240 | . 41 29 127 28 15 Gun 224 | . 36 28 122 26 12 Cannon . | . . . . . . Launcher 16 | . 5 1 5 2 3 Special . | . . . . . . Kinetic 224 | . 36 28 122 26 12 Thermal . | . . . . . . Explosive 16 | . 5 1 5 2 3 Electromagnetic . | . . . . . . Robot Hit Streak 13 | . 9 12 13 5 8 Robot Miss Streak 3 | . 2 3 3 3 1 Penetration Max . | . . . . . . Secondary Targets 2 | . 2 . . . . Max Gunslinging Chain 1 | . 1 . . . . Shots Hit Robots 156 | . 26 17 89 14 10 Core Hits 85 | . 20 8 32 13 12 Critical Kills . | . . . . . . Critical Parts Destroyed 1 | . 1 . . . . Critical Strikes 1 | . 1 . . . . Destroy 1 | . 1 . . . . Melee Attacks 1 | . . . . . 1 Impact . | . . . . . . Slashing 1 | . . . . . 1 Piercing . | . . . . . . Sneak Attacks . | . . . . . . Combat Hostiles . | . . . . . . Follow-up Attacks . | . . . . . . Damage Inflicted 2912 | . 581 348 1100 419 464 Guns 1644 | . 252 174 894 172 152 Cannons . | . . . . . . Explosions 1259 | . 329 165 206 247 312 Melee . | . . . . . . Ramming 9 | . . 9 . . . Kinetic 1644 | . 252 174 894 172 152 Thermal 125 | . . 125 . . . Explosive 1134 | . 329 40 206 247 312 Electromagnetic . | . . . . . . Impact . | . . . . . . Slashing . | . . . . . . Piercing . | . . . . . . Highest Corruption 1 | . . 1 . . . Average Corruption 1 | . . 1 . . . Corruption Purged . | . . . . . . Corruption Blocked . | . . . . . . Overload Shots . | . . . . . . Overflow Damage 73 | . 5 11 15 11 31 Projectiles . | . . . . . . Explosions 73 | . 5 11 15 11 31 Melee . | . . . . . . Knockbacks . | . . . . . . Impact . | . . . . . . Kinetic . | . . . . . . Secondary . | . . . . . . Self-Inflicted Damage 133 | . 14 13 . 32 74 Shots 6 | . 2 1 . 1 2 Rammed 1 | . . 1 . . . Targets Rammed 1 | . . 1 . . . Kicked . | . . . . . . Crushed . | . . . . . . Highest Temperature 31 | . 24 . 31 4 10 Average Temperature 4 | . 11 . 4 1 5 Received Heat Transfer 339 | . 66 . 273 . . Siege Activations . | . . . . . . Robots Corrupted . | . . . . . . Combat Hostiles . | . . . . . . Parts Fried . | . . . . . . Impact Corruptions . | . . . . . . Robots Melted . | . . . . . . Combat Hostiles . | . . . . . . Parts Melted . | . . . . . . Heat Transferred 150 | . . 150 . . . Parts Sabotaged . | . . . . . . Parts Stolen . | . . . . . . Parts Stripped . | . . . . . . Power Chain Reactions . | . . . . . . Missiles Intercepted . | . . . . . . Alert | -11 -10 -10 -9 -9 -9 ------- Run | Scr Mat Min Mat Min Exi Peak Influence 383 | . 383 208 277 196 . Initial 79 | . . 79 3 48 . Average 116 | . 228 43 160 88 . Maximum Alert Level 1 | . 1 1 1 . . Low Security (%) 77 | 100 45 90 61 100 . Level 1 22 | . 54 9 38 . . Level 2 . | . . . . . . Level 3 . | . . . . . . Level 4 . | . . . . . . Level 5 . | . . . . . . High Security . | . . . . . . Max Security . | . . . . . . Squads Dispatched 4 | . 1 . 2 1 . Investigation 1 | . 1 . . . . Extermination . | . . . . . . Reinforcement 3 | . . . 2 1 . Assault . | . . . . . . Garrison . | . . . . . . Intercept . | . . . . . . Searches Triggered . | . . . . . . Construction Impeded 1 | . . . . 1 . Haulers Reinforced . | . . . . . . Active Scanning Responses . | . . . . . . Cargo Convoy Interrupts . | . . . . . . Stealth | -11 -10 -10 -9 -9 -9 --------- Run | Scr Mat Min Mat Min Exi Distress Signals 6 | . 2 . 4 . . Communications Jammed . | . . . . . . Distress Signals . | . . . . . . Times Spotted 54 | . 15 3 22 6 8 Peak Tracking Total 9 | . 4 3 5 4 9 Tactical Retreats 1 | . . . 1 . . Traps | -11 -10 -10 -9 -9 -9 ------- Run | Scr Mat Min Mat Min Exi Traps Triggered 3 | . 2 . 1 . . Indirectly . | . . . . . . Trap Hack Attempts . | . . . . . . Triggered . | . . . . . . Disarmed . | . . . . . . Reprogrammed . | . . . . . . Reused . | . . . . . . Traps Extracted . | . . . . . . Installed . | . . . . . . Triggered . | . . . . . . Most Traps Carried 5 | . . 5 5 5 3 Machines | -11 -10 -10 -9 -9 -9 ---------- Run | Scr Mat Min Mat Min Exi Machines Disabled 9 | . 1 1 2 2 3 Max in Single Turn 2 | . 1 1 2 1 1 Machines Sabotaged . | . . . . . . Garrisons Compromised . | . . . . . . Overloaded Fab Kills . | . . . . . . Hacking | -11 -10 -10 -9 -9 -9 --------- Run | Scr Mat Min Mat Min Exi Machines Accessed 7 | . 2 . 5 . . Terminals 5 | . 1 . 4 . . Fabricators . | . . . . . . Repair Stations 1 | . . . 1 . . Recycling Units 1 | . 1 . . . . Scanalyzers . | . . . . . . Garrison Access . | . . . . . . Total Hacks 12 | . 4 . 8 . . Successful 6 | . 3 . 3 . . Failed 6 | . 1 . 5 . . Catastrophic 2 | . . . 2 . . Database Lockouts . | . . . . . . Manual 9 | . 3 . 6 . . Terminals 10 | . 3 . 7 . . Fabricators . | . . . . . . Repair Stations 1 | . . . 1 . . Recycling Units 1 | . 1 . . . . Scanalyzers . | . . . . . . Garrison Access . | . . . . . . Terminal Hacks 3 | . 1 . 2 . . Alert Level 1 | . . . 1 . . Hauler Manifests 2 | . 1 . 1 . . Fabricator Hacks . | . . . . . . Repair Station Hacks . | . . . . . . Recycling Unit Hacks . | . . . . . . Scanalyzer . | . . . . . . Garrison Access Hacks . | . . . . . . Unauthorized Hacks 3 | . 2 . 1 . . Terminals 1 | . 1 . . . . Operators 1 | . 1 . . . . Fabricators . | . . . . . . Repair Stations 1 | . . . 1 . . Mechanics 1 | . . . 1 . . Recycling Units 1 | . 1 . . . . Tunnel 1 | . 1 . . . . Scanalyzers . | . . . . . . Garrison Access . | . . . . . . Data Cores Recovered . | . . . . . . Used . | . . . . . . Hacking Detections 6 | . 1 . 5 . . Full Trace Events . | . . . . . . Feedback Events . | . . . . . . Feedback Blocked . | . . . . . . Robot Schematics Acquired . | . . . . . . Robots Built . | . . . . . . Authchips . | . . . . . . Time . | . . . . . . Total Robot Build Rating . | . . . . . . Part Schematics Acquired . | . . . . . . Parts Built . | . . . . . . Authchips . | . . . . . . Time . | . . . . . . Total Part Build Rating . | . . . . . . Parts Repaired . | . . . . . . Time . | . . . . . . Parts Recycled . | . . . . . . Recycled Matter . | . . . . . . Retrieved Matter . | . . . . . . Retrieved Components . | . . . . . . Parts Scanalyzed . | . . . . . . Part Schematics Acquired . | . . . . . . Parts Damaged . | . . . . . . Bothacking | -11 -10 -10 -9 -9 -9 ------------ Run | Scr Mat Min Mat Min Exi Used RIF Installer . | . . . . . . Robots Hacked . | . . . . . . Non-combat . | . . . . . . Combat . | . . . . . . Robot Hacks Applied . | . . . . . . Relay Couplers Released . | . . . . . . Fabnet Peak Effective % . | . . . . . . Robots Rewired . | . . . . . . Allies Hacked . | . . . . . . Hacks Repelled . | . . . . . . Allies | -11 -10 -10 -9 -9 -9 -------- Run | Scr Mat Min Mat Min Exi Total Allies 3 | . . 1 . 2 . Largest Group 2 | . . 1 . 2 . Highest-Rated Group 47 | . . 31 . 47 . Highest-Rated Ally 31 | . . 31 . 31 . Total Orders . | . . . . . . Ally Attacks 4 | . . . . 4 . Total Damage 82 | . . . . 82 . Kills 2 | . . . . 2 . Allies Corrupted . | . . . . . . Allies Melted . | . . . . . . Intel | -11 -10 -10 -9 -9 -9 ------- Run | Scr Mat Min Mat Min Exi Robot Analysis Total . | . . . . . . Derelict Logs Recovered 3 | . . 2 . 1 . Drone Launches . | . . . . . . Drone Recoveries . | . . . . . . Exploration | -11 -10 -10 -9 -9 -9 ------------- Run | Scr Mat Min Mat Min Exi Turns Passed 3984 | 66 661 1194 984 809 270 Spaces Moved 1968 | 36 366 562 436 434 134 Core 20 | 14 . . . . 6 Treads 444 | 22 366 52 . . 4 Legs . | . . . . . . Wheels 1504 | . . 510 436 434 124 Hover . | . . . . . . Flight . | . . . . . . Fastest Speed 50 | 50 160 160 175 175 50 Average Speed 179 | 156 160 201 175 175 172 Slowest Speed 320 | 250 160 320 175 175 240 Overloaded Moves . | . . . . . . Propulsion Burnouts . | . . . . . . Robots Hopped . | . . . . . . Cave-ins Triggered . | . . . . . . Exploration Rate (%) 53 | 3 82 95 54 75 11 Regions Visited 5 Branch Regions 3 Pre-discovered Areas 2 | . 1 1 . . . Known Exits Taken . | . . . . . . Unknown Exits Taken 5 | 1 1 1 1 1 . Scrap Searched 3 | . . 1 . 2 . Spaces Dug . | . . . . . . Terrain Destroyed 85 | . 36 13 . 11 25 Melee . | . . . . . . Projectile . | . . . . . . AOE 85 | . 36 13 . 11 25 Terrain Rammed . | . . . . . . Walls Destroyed . | . . . . . . Machines Disabled . | . . . . . . Actions | -11 -10 -10 -9 -9 -9 --------- Run | Scr Mat Min Mat Min Exi Total 2206 | 43 401 592 549 461 160 Wait 11 | . 1 . 9 1 . Move 1963 | 35 365 561 435 433 134 Hop . | . . . . . . Pick Up 47 | 2 6 11 19 5 4 Fast Attach 8 | 6 1 . . . 1 Attach 11 | . . . 9 . 2 Detach 1 | . . . 1 . . Swap 18 | . 5 4 4 2 3 Drop 17 | . . . 6 5 6 Fire 128 | . 23 15 66 15 9 Melee 1 | . . . . . 1 Ram 1 | . . 1 . . . Kick . | . . . . . . Crush . | . . . . . . Escape Stasis . | . . . . . . Rewire . | . . . . . . Trap . | . . . . . . Miscellaneous . | . . . . . . Route ------- -11/Scrapyard -10/Materials (discovered 4 exits: *Mat x3 / [*Min]) -10/Mines (discovered 2 exits: *Mat x2) -9/Materials (discovered 3 exits: [*Mat x2] / [*Min]) -9/Mines (discovered 3 exits: [*Mat x2] / [*Exi]) -9/Exiles History --------- Turn | Location | Event 14 | -11/Scrapyard | Discovered new exit (range 16) 67 | -11/Scrapyard | Entered Materials 254 | -10/Materials | Discovered new exit (range 13) 303 | -10/Materials | Build established: Mutant 341 | -10/Materials | Discovered new exit (range 13) 359 | -10/Materials | Discovered new exit (range 16) 551 | -10/Materials | Discovered new exit (range 8) 728 | -10/Materials | Entered Mines 776 | -10/Mines | Discovered new exit (range 5) 839 | -10/Mines | Learned Materials emergency access door positions 1040 | -10/Mines | Learned location of Mines (-9) 1050 | -10/Mines | A weapon hastily lodged in a ceiling crevice suddenly fell to the ground 1089 | -10/Mines | Found a hidden stash of uninstalled traps 1146 | -10/Mines | Discovered new exit (range 7) 1151 | -10/Mines | Received a Mining Laser from a helpful Derelict 1922 | -10/Mines | Entered Materials 1922 | -9/Materials | Evolved 2 slots: Propulsion x1, Utility x1 2038 | -9/Materials | Destroyed 7 combat bots 2297 | -9/Materials | Discovered new exit (range 13) 2393 | -9/Materials | Build established: Scavenger-Mutant 2626 | -9/Materials | Discovered new exit (range 16) 2702 | -9/Materials | Discovered new exit (range 7) 2906 | -9/Materials | Entered Mines 3034 | -9/Mines | Discovered new exit (range 15) 3077 | -9/Mines | Received a Rocket Launcher from a helpful Derelict 3291 | -9/Mines | Discovered new exit (range 15) 3406 | -9/Mines | Learned Materials security intel 3538 | -9/Mines | Deemed a non-threat by the Exiles lab entrance 3540 | -9/Mines | Discovered new exit (range 5) 3715 | -9/Mines | Entered Exiles 3938 | -9/Exiles | Met 8R-AWN 3956 | -9/Exiles | Attacked by the Exiles 3973 | -9/Exiles | Core integrity fell below 50% 3979 | -9/Exiles | Core integrity fell below 20% 3985 | -9/Exiles | Destroyed by 8R-AWN with 8R-AWN's Boregun Last Messages --------------- 03974_ as-22935 destroyed. 03974_ Machine disabled. 03974_ Hrd. Light Armor Plating destroyed. 03974_ Destroyed Hrd. Light Armor Plating. 03976_ as-13208 destroyed. 03976_ as-65588 destroyed. 03976_ as-25183 destroyed. 03976_ Machine disabled. 03976_ Penetrated by HV Slug. 03978_ Destroyed Asb. Hover Unit. 03978_ as-82976 destroyed. 03978_ as-43343 destroyed. 03978_ Mni. Grenade Launcher destroyed. 03978_ Destroyed Mni. Grenade Launcher. 03978_ Penetrated by HV Slug. 03980_ Dropped Huge Storage Unit. 03981_ Penetrated by HV Slug. 03983_ HV Slug penetrates Earth. 03983_ Acquired Ripper. 03985_ Penetrated by HV Slug. Map ----- +----------------------------------------------------+ | ?????????????????????????????????????????????????? | | ?????????????????????????????????????????????????? | | ?????????????????????????????????????????????????? | | ?????????????????????????????????????????????????? | | ?????????????????????????????????????????????????? | | ?????????????????????????????????????????????????? | | ?????????????????????????????????????????????????? | | ?????????????????????????????????????????????????? | | ?????????????????????????????????????????????????? | | ?????????????????????????????????????????????????? | | ?????????????????????????????????????????????????? | | ?????????????????????????????????????????????????? | | ?????????????????????????????????????????????????? | | ?????????????????????????????????????????????????? | | ?????????????????????????????????????????????????? | | ?????????????????????????????????????????????????? | | ?????????????????????????????????????????????????? | | ????????????????????????????????????????????? ??? | | ????????????????????????????????????????????? ? | | ????????????????????????????????????????????? ? | | ????????????????????????????????????????????# #? | | ??????????????????????????????????????????## ## | | ???????????????????##########?????????????# # | | ???????????????????# # # #?????????????# # | | ???????????????????## =! #????????????## ? | | ???????????????????# g@= #???????????## #?? | | ??????????????????## &&!*##???????????# #?? | | ??????????????????# *!!!&##????????### #??? | | ?????????????????# =[! ########## #??? | | ????????????????# #""""## #???? | | ????????????????# % ##??? | | ?????????????? % # #??? | | ????????????? a% ### ##?? | | ???????????? " ?#"""""##;# * ### | | ????????????? #"""##?#######?#;### # | | ????????????? #####????????????# ###### | | ?????????????? ???????????????????# ????### | | ???????????????????????????????????? ?????### | | ????????????????????????????????????? ??????### | | ?????????????????????????????????????????????#" | | ?????????????????????????????????????????????#### | | ????????????????????????????????????????????????# | | ????????????????????????????????????????????????## | | ?????????????????????????????????????????????????# | | ?????????????????????????????????????????????????? | | ?????????????????????????????????????????????????? | | ?????????????????????????????????????????????????? | | ?????????????????????????????????????????????????? | | ?????????????????????????????????????????????????? | | ?????????????????????????????????????????????????? | +----------------------------------------------------+ Best States ------------- Heat Dissipation 28 Energy Generation 14 Energy Capacity 250 Matter Stores 300 Matter Capacity 300 Sight Range 16 Terrain Scan Density 10 Armor Coverage 300 Evasion (%) 40 Recoil Reduction 3 Item Schematics ----------------- None Robot Schematics ------------------ None Fabricated ------------ Nothing Alien Tech Used ----------------- None Achievements -------------- None Challenges ------------ None Game ------ Seed PoweredRestorationUnit Manual? 0 Play Time 00:19:34 Cumulative 305.4 hours Start 2022.04.06 @ 19:32:01 End 2022.04.06 @ 23:56:54 Sessions 5 Manual Loads 0 Difficulty Rogue Special Mode None Game No. 454 Rogue 454 Adventurer 0 Explorer 0 Win Type - Total 5 Types 3/0/1/1/0/0/0/0/0 Lore% 79 Gallery% 81 Achievement% 64 Wizard Run 0 Options --------- ASCII 0 Keyboard 1 Movement Numpad Keybinds 0 Fullscreen 2 Font 24/Smallcaps Map View 76x50 Tactical HUD 1 Map Filters NONE Filters NONE Steam 1 RUN: 22f622da-528d-47ab-9897-e330f6ac1550